Cogmind - Beta 10.1 @@@ ROGUE MODE // 2020.09.28 @ 15:57:50 Player: Hechtic Result: Destroyed by G-47 Trooper with Particle Gun Performance ------------- Evolutions (0) 0 Regions Visited (2) 400 Robots Destroyed (29) 145 Value Destroyed (524) 524 Prototype IDs (2) 40 Alien Tech Used (0) 0 Bonus (0) 0 TOTAL SCORE: 1109 Bonus ------- None Cogmind --------- Core Integrity 0/250 Matter 265/300 Energy 211/250 System Corruption 0% Temperature Cool (57) Movement Walking (180) Ox2 Location -10/Mines Parts ------- > --- POWER (1) -------- Ion Engine > --- PROPULSION (2) --- Aluminum Leg Aluminum Leg > --- UTILITY (2) ------ High-capacity Storage Unit ECM Suite > --- WEAPON (2) ------- EM Pulse Gun Maul > --- INVENTORY (12) --- Aluminum Leg Aluminum Leg Structural Scanner Visual Processing Unit Signal Interpreter Terrain Scanner Seismic Analyzer Transport Network Coupler Beam Rifle Beam Cannon Peak State ------------ > --- POWER ------------ Light Ion Engine > --- PROPULSION ------- Aluminum Leg Aluminum Leg > --- UTILITY ---------- High-capacity Storage Unit ECM Suite > --- WEAPON ----------- Beam Rifle Beam Rifle > --- INVENTORY -------- Ion Engine Light Treads Light Treads Visual Processing Unit Visual Processing Unit Terrain Scanner Transport Network Coupler EM Pulse Gun Beam Cannon Assault Rifle Maul [Rating: 10] Favorites ----------- Power Light Ion Engine Engine Light Ion Engine Propulsion Aluminum Leg Treads Light Treads Leg Aluminum Leg Utility ECM Suite Device ECM Suite Storage High-capacity Storage Unit Weapon Beam Rifle Energy Gun Beam Rifle Energy Cannon Beam Cannon Ballistic Gun Assault Rifle Launcher Grenade Launcher Impact Weapon Maul Build | -11 -10 -10 ------- Run | Scr Mat Min Slots Evolved . | . . . Power . | . . . Propulsion . | . . . Utility . | . . . Weapon . | . . . Parts Attached 31 | 6 14 11 Power 4 | 1 . 3 Engine 4 | 1 . 3 Core . | . . . Reactor . | . . . Propulsion 9 | 2 4 3 Treads 1 | . 1 . Leg 8 | 2 3 3 Wheel . | . . . Hover . | . . . Flight . | . . . Utility 3 | 1 2 . Device 1 | . 1 . Storage 2 | 1 1 . Processor . | . . . Hackware . | . . . Protection . | . . . Artifact . | . . . Weapon 15 | 2 8 5 Energy Gun 6 | 2 2 2 Energy Cannon 2 | . 1 1 Ballistic Gun 2 | . 2 . Ballistic Cannon . | . . . Launcher 4 | . 3 1 Special Weapon . | . . . Impact Weapon 1 | . . 1 Slashing Weapon . | . . . Piercing Weapon . | . . . Special Melee Weapon . | . . . Unidentified Prototypes . | . . . Parts Lost 5 | . 2 3 Power 1 | . . 1 Propulsion 2 | . 2 . Utility . | . . . Weapon 2 | . . 2 Highest Loss Streak 2 | . 2 2 Average Slot Usage (%) 98 | . 98 99 Engine 13 | . 14 13 Leg 27 | . 27 28 Device 13 | . 12 14 Storage 14 | . 14 14 Energy Gun 16 | . 17 15 Energy Cannon 4 | . 7 2 Ballistic Gun 1 | . 2 . Launcher 1 | . 1 . Impact Weapon 4 | . . 8 Naked Turns . | . . . Heaviest Build 44 | 10 42 44 Greatest Support 20 | 20 20 20 Greatest Overweight (x) 4 | . 4 2 Average Overweight (x) 1 | . 1 1 Largest Inventory Capacity 12 | 6 12 12 Average Capacity 11 | 5 10 12 Most Carried 12 | 4 12 12 Average Carried 10 | 2 9 11 Final Capacity 12 | 6 12 12 Final Carried 12 | 4 12 10 Class Distribution -------------------- 100% | Mutant Dominant Class ---------------- Mutant | -10/Materials Mutant | -10/Mines Resources | -11 -10 -10 ----------- Run | Scr Mat Min Matter Collected 561 | 215 256 90 Remotely . | . . . Salvage Created 837 | . 523 314 Parts 54 | . 28 26 Haulers Intercepted 1 | . 1 . Recyclers Shooed . | . . . Parts Field Recycled . | . . . Retrieved Matter . | . . . Parts Self-Destructed . | . . . Prevented . | . . . Kills | -11 -10 -10 ------- Run | Scr Mat Min Combat Hostiles Destroyed 21 | . 7 14 Melee 2 | . . 2 Guns 9 | . 2 7 Cannons 1 | . 1 . AOE 9 | . 4 5 Classes Destroyed 7 | . 6 1 Worker 3 | . 2 1 Builder 1 | . 1 . Hauler 1 | . 1 . Recycler 3 | . 3 . Swarmer 9 | . 3 6 Grunt 10 | . 4 6 Assembled 2 | . . 2 Best Kill Streak 6 | . 6 5 Combat Bots Only 5 | . 2 5 Max Kills in Single Turn 4 | . 2 4 Gunslinging . | . . . Exploded 4 | . 2 4 Melee 1 | . . 1 Uniques/NPCs Destroyed . | . . . Combat | -11 -10 -10 -------- Run | Scr Mat Min Damage Taken 1072 | . 358 714 Core 266 | . 41 225 Absorbed by Shields . | . . . Core Remaining (%) 100 | 100 . . Volleys Fired 59 | . 28 31 Largest 2 | . 2 2 Hottest 112 | . 112 112 Shots Fired 89 | . 54 35 Gun 60 | . 27 33 Cannon 21 | . 21 . Launcher 8 | . 6 2 Special . | . . . Kinetic 7 | . 7 . Thermal 61 | . 31 30 Explosive 8 | . 6 2 Electromagnetic 13 | . 10 3 Robot Hit Streak 13 | . 13 7 Robot Miss Streak 3 | . 3 2 Penetration Max . | . . . Secondary Targets 1 | . . 1 Max Gunslinging Chain 1 | . . 1 Shots Hit Robots 58 | . 33 25 Core Hits 40 | . 23 17 Critical Hits . | . . . Critical Kills . | . . . Critical Parts Destroyed . | . . . Melee Attacks 28 | . . 28 Impact 28 | . . 28 Slashing . | . . . Piercing . | . . . Sneak Attacks 1 | . . 1 Combat Hostiles . | . . . Follow-up Attacks . | . . . Damage Inflicted 1501 | . 860 641 Guns 549 | . 234 315 Cannons 210 | . 210 . Explosions 637 | . 416 221 Melee 105 | . . 105 Ramming . | . . . Kinetic 45 | . 45 . Thermal 594 | . 304 290 Explosive 602 | . 381 221 Electromagnetic 155 | . 130 25 Impact 105 | . . 105 Slashing . | . . . Piercing . | . . . Highest Corruption . | . . . Average Corruption . | . . . Corruption Purged . | . . . Overload Shots . | . . . Overflow Damage 37 | . 30 7 Projectiles 11 | . 11 . Explosions 26 | . 19 7 Melee . | . . . Knockbacks . | . . . Impact . | . . . Kinetic . | . . . Secondary . | . . . Self-Inflicted Damage 98 | . 48 50 Shots 4 | . 2 2 Rammed . | . . . Targets Rammed . | . . . Kicked . | . . . Crushed . | . . . Highest Temperature 201 | . 201 166 Average Temperature 66 | . 80 46 Received Heat Transfer 327 | . 144 183 Siege Activations . | . . . Robots Corrupted . | . . . Combat Hostiles . | . . . Parts Fried . | . . . Impact Corruptions . | . . . Robots Melted . | . . . Combat Hostiles . | . . . Parts Melted 3 | . 1 2 Heat Transferred 1382 | . 642 740 Parts Sabotaged . | . . . Parts Stolen . | . . . Parts Stripped . | . . . Power Chain Reactions 2 | . 2 . Missiles Intercepted . | . . . Alert | -11 -10 -10 ------- Run | Scr Mat Min Peak Influence 180 | . 170 180 Initial . | . . . Average 60 | . 59 67 Maximum Alert Level . | . . . Low Security (%) 100 | 100 100 100 Level 1 . | . . . Level 2 . | . . . Level 3 . | . . . Level 4 . | . . . Level 5 . | . . . High Security . | . . . Max Security . | . . . Squads Dispatched . | . . . Investigation . | . . . Extermination . | . . . Reinforcement . | . . . Assault . | . . . Garrison . | . . . Intercept . | . . . Construction Impeded . | . . . Haulers Reinforced . | . . . Stealth | -11 -10 -10 --------- Run | Scr Mat Min Distress Signals . | . . . Communications Jammed . | . . . Distress Signals . | . . . Times Spotted 38 | . 18 20 Peak Tracking Total 7 | . 4 7 Tactical Retreats 4 | . 2 2 Traps | -11 -10 -10 ------- Run | Scr Mat Min Traps Triggered . | . . . Indirectly . | . . . Trap Hack Attempts . | . . . Triggered . | . . . Disarmed . | . . . Reprogrammed . | . . . Reused . | . . . Traps Extracted . | . . . Installed . | . . . Triggered . | . . . Machines | -11 -10 -10 ---------- Run | Scr Mat Min Machines Disabled 4 | . 3 1 Max in Single Turn 2 | . 2 1 Machines Sabotaged . | . . . Garrisons Compromised . | . . . Overloaded Fab Kills . | . . . Fab Network Shutdowns . | . . . Hacking | -11 -10 -10 --------- Run | Scr Mat Min Machines Accessed 4 | . 4 . Terminals 3 | . 3 . Fabricators . | . . . Repair Stations . | . . . Recycling Units 1 | . 1 . Scanalyzers . | . . . Garrison Access . | . . . Total Hacks 10 | . 10 . Successful 7 | . 7 . Failed 3 | . 3 . Catastrophic . | . . . Database Lockouts . | . . . Manual . | . . . Terminals 8 | . 8 . Fabricators . | . . . Repair Stations . | . . . Recycling Units 2 | . 2 . Scanalyzers . | . . . Garrison Access . | . . . Terminal Hacks 5 | . 5 . Prototype ID Bank 1 | . 1 . Alert Level 1 | . 1 . Locate Traps 2 | . 2 . Hauler Manifests 1 | . 1 . Fabricator Hacks . | . . . Repair Station Hacks . | . . . Recycling Unit Hacks 2 | . 2 . Report Inventory 1 | . 1 . Retrieve Components 1 | . 1 . Scanalyzer . | . . . Garrison Access Hacks . | . . . Unauthorized Hacks . | . . . Terminals . | . . . Fabricators . | . . . Repair Stations . | . . . Recycling Units . | . . . Scanalyzers . | . . . Garrison Access . | . . . Data Cores Recovered . | . . . Used . | . . . Hacking Detections 2 | . 2 . Full Trace Events . | . . . Feedback Events . | . . . Feedback Blocked . | . . . Robot Schematics Acquired . | . . . Robots Built . | . . . Matter . | . . . Time . | . . . Total Robot Build Rating . | . . . Part Schematics Acquired . | . . . Parts Built . | . . . Matter . | . . . Time . | . . . Total Part Build Rating . | . . . Parts Repaired . | . . . Time . | . . . Parts Recycled . | . . . Recycled Matter . | . . . Retrieved Matter . | . . . Retrieved Components 3 | . 3 . Parts Scanalyzed . | . . . Part Schematics Acquired . | . . . Parts Damaged . | . . . Bothacking | -11 -10 -10 ------------ Run | Scr Mat Min Used RIF Installer . | . . . Robots Hacked . | . . . Non-combat . | . . . Combat . | . . . Robot Hacks Applied . | . . . Relay Couplers Released . | . . . Robots Rewired . | . . . Allies Hacked . | . . . Hacks Repelled . | . . . Allies | -11 -10 -10 -------- Run | Scr Mat Min Total Allies . | . . . Largest Group . | . . . Highest-Rated Group . | . . . Highest-Rated Ally . | . . . Total Orders . | . . . Ally Attacks . | . . . Total Damage . | . . . Kills . | . . . Allies Corrupted . | . . . Allies Melted . | . . . Intel | -11 -10 -10 ------- Run | Scr Mat Min Robot Analysis Total . | . . . Derelict Logs Recovered 1 | . . 1 Drone Launches . | . . . Drone Recoveries . | . . . Exploration | -11 -10 -10 ------------- Run | Scr Mat Min Turns Passed 1636 | 61 832 743 Spaces Moved 752 | 42 423 287 Core 3 | 3 . . Treads 4 | . 4 . Legs 745 | 39 419 287 Wheels . | . . . Hover . | . . . Flight . | . . . Fastest Speed 50 | 50 120 150 Average Speed 167 | 115 164 179 Slowest Speed 240 | 120 240 180 Overloaded Moves . | . . . Propulsion Burnouts . | . . . Robots Hopped . | . . . Cave-ins Triggered . | . . . Exploration Rate (%) 34 | 5 55 44 Regions Visited 2 Branch Regions 1 Pre-discovered Areas . | . . . Known Exits Taken . | . . . Unknown Exits Taken 2 | 1 1 . Scrap Searched 2 | . . 2 Spaces Dug . | . . . Terrain Destroyed 31 | . 15 16 Melee . | . . . Projectile . | . . . AOE 31 | . 15 16 Terrain Rammed . | . . . Walls Destroyed . | . . . Machines Disabled . | . . . Actions | -11 -10 -10 --------- Run | Scr Mat Min Total 985 | 52 509 424 Wait 69 | . 13 56 Move 750 | 41 422 287 Hop . | . . . Pick Up 27 | 5 18 4 Fast Attach 9 | 5 3 1 Attach 7 | 1 4 2 Detach 2 | . 2 . Swap 15 | . 7 8 Drop 19 | . 12 7 Fire 59 | . 28 31 Melee 28 | . . 28 Ram . | . . . Kick . | . . . Crush . | . . . Escape Stasis . | . . . Rewire . | . . . Trap . | . . . Miscellaneous . | . . . Route ------- -11/Scrapyard -10/Materials (discovered 2 exits: [*Mat] / [*Min]) -10/Mines History --------- Turn | Location | Event 17 | -11/Scrapyard | Discovered new exit (range 16) 62 | -11/Scrapyard | Entered Materials 246 | -10/Materials | Discovered new exit (range 8) 302 | -10/Materials | Build established: Mutant 445 | -10/Materials | Discovered new exit (range 13) 894 | -10/Materials | Entered Mines 988 | -10/Mines | Learned 4 Materials zone layouts 1163 | -10/Mines | Excavation squad dispatched 1163 | -10/Mines | A large section of the Mines collapsed 1413 | -10/Mines | Excavation squad dispatched 1553 | -10/Mines | Core integrity fell below 50% 1621 | -10/Mines | Core integrity fell below 20% 1637 | -10/Mines | Destroyed by G-47 Trooper with Particle Gun Last Messages --------------- 01554_ as-02241 destroyed. 01555_ U-05 Engineer lays Concrete. 01555_ Ion Engine destroyed. 01557_ U-05 Engineer lays Concrete. 01558_ T-07 Excavator is excavating. 01558_ U-05 Engineer lays Concrete. 01560_ Acquired Ion Engine. 01560_ U-05 Engineer lays Concrete. 01561_ Acquired 10 matter. 01563_ U-05 Engineer lays Concrete. 01565_ T-07 Excavator is excavating. 01566_ U-05 Engineer lays Concrete. 01569_ T-07 Excavator is excavating. 01570_ U-05 Engineer lays Concrete. 01615_ S-10 Pest destroyed. 01617_ G-34 Mercenary destroyed. 01617_ S-10 Pest destroyed. 01617_ Grenade Launcher destroyed. 01617_ Destroyed Grenade Launcher. 01636_ Seismic Survey Station disabled. Map ----- +----------------------------------------------------+ | | | | | | | | | ??????????????????????????????????? | | ??##################??????????????? | | ??# #??????????????? | | ??# """ """ """ #??????????????? | | ??# """ """ """ #??????????????? | | ??# """ """ """ #??????????????? | | ??# #???????????#### | | ??# """ """ """ #??########## | | ??# """ """ """ #??# =%!%*[* | | ??# """ """ """ #??#=##=##### ## | | ??# ####%##%##### #? | | ??# !!= [*##* ### #? | | ??# |%############# #? | | ??# "!#???#### ## #? | | ??############### ##??## ###### #? | | ????????????????# #??## #??### #? | | ???#####????????#=####" #??# #? | | ???# ??????##%= " ##?# #### | | ???# ??????# [= # % % ### ### | | ???# """ ?????#[=% # ! !% | | ???# """gg###### %* #" " % " ## | | ???# "" @ g% ##" ######### | | ???# g[ #####"#??????# | | ???# ### ##????##??????## | | ???# ??# #????? ????????# | | ???#######??# #????? ????????? | | ????????????## ##????? ????????? | | ?????????????## ##?????? ????????? | | ??????????????####??????? ????????? | | ????????????????????????? ????????? | | ??????????????????????????????????? | | ??????????????????????????????????? | | ??????????????????????????????????# | | ??????????????????????????????????? | | ??????????????????????????????????? | | ??????????????????????????????????? | | ??????????????????????????????????? | | ??????????????????????????????????? | | ??????????????????????????????????? | | ??????????????????????????????????? | | ??????????????????????????????????? | | ??????????????????????????????????? | | ??????????????????????????????????? | | ??????????????????????????????????? | | ??????????????????????????????????? | | ??????????????????????????????????? | +----------------------------------------------------+ Best States ------------- Heat Dissipation 25 Energy Generation 10 Energy Capacity 250 Matter Stores 300 Matter Capacity 300 Sight Range 16 Terrain Scan Density 10 ECM Strength 1 Evasion (%) 40 Item Schematics ----------------- None Robot Schematics ------------------ None Fabricated ------------ Nothing Alien Tech Used ----------------- None Achievements -------------- None Challenges ------------ None Game ------ Seed MetafieldTerrainSpear Manual? 0 Play Time 00:24:37 Cumulative 14.1 hours Start 2020.09.28 @ 15:32:52 End 2020.09.28 @ 15:57:50 Sessions 1 Manual Loads 0 Difficulty Rogue Special Mode None Game No. 23 Rogue 23 Adventurer 0 Explorer 0 Win Type - Total 0 Types 0/0/0/0/0/0/0/0/0 Lore% 8 Gallery% 12 Achievement% 12 Wizard Run 0 Options --------- ASCII 0 Keyboard 0 Movement Mouse Keybinds 0 Fullscreen 1 Font 24/Smallcaps Map View 76x50 Tactical HUD 1 Map Filters NONE Filters NONE Steam 1 RUN: d9aeb1d2-e2ad-4138-8865-e43966d29cf9